fUST/lending_fUST_20251231
["ID","MTS","AMOUNT","RATE_DAILY","PERIOD"]
[400105571,1767120646794,-2351.0,0.00026125,2]
[400105572,1767120646804,-995.3526357,0.00026192,7]
[400105573,1767120646815,-224.98317689,0.00026236,2]
[400105574,1767120646826,-168.0,0.00026325,2]
[400105575,1767120646836,-168.0,0.00026334,2]
[400105576,1767120646847,-168.0,0.00026358,2]
[400105577,1767120646858,-2021.32553266,0.00026388,2]
[400105578,1767120646869,-168.0,0.00026409,2]
[400105579,1767120646880,-168.0,0.00026418,2]
[400105580,1767120646891,-168.0,0.00026419,2]
[400105581,1767120646902,-1234.87972918,0.00026468,2]
[400105582,1767120646914,-1234.87972917,0.00026473,2]
[400105583,1767120646924,-500.0,0.00026476,2]
[400105584,1767120646935,-370.64160038,0.00026476,2]
[400105585,1767120646946,-509.48407731,0.00026476,2]
[400105586,1767120646957,-23902.17492365,0.00026477,2]
[400105587,1767120646970,-3854.12741463,0.00026477,2]
[400105588,1767120646983,-2265.9225486,0.00026477,2]
[400105604,1767121550131,-179.5240114,0.00013009,2]
[400105605,1767121675061,4969.32691254,0.00012771,2]
[400105606,1767121756258,-150.0,0.00013239,2]
[400105607,1767121756281,-1200.0,0.00013272,2]
[400105608,1767121756303,-300.0,0.00013272,2]
[400105609,1767121756324,-300.0,0.00013272,2]
[400105610,1767121756345,-185.02516817,0.00013273,2]
[400105611,1767121756366,-269.7113098,0.00013273,2]
[400105612,1767121756385,-340.60756482,0.00013273,2]
[400105613,1767121756404,-512.8342929,0.00013273,2]
[400105614,1767121756423,-422.94506622,0.00013273,2]
[400105615,1767121756442,-501.19052166,0.00013273,2]
[400105616,1767121756464,-300.0,0.00013537,2]
[400105617,1767121756487,-300.0,0.00013537,2]
[400105618,1767121756508,-300.0,0.00013537,2]
[400105619,1767121756529,-300.0,0.00013537,2]
[400105620,1767121756554,-300.0,0.00013537,2]
[400105621,1767121756576,-300.0,0.00013537,2]
[400105622,1767121756599,-300.0,0.00013537,2]
[400105623,1767121756621,-300.0,0.00013537,2]
[400105624,1767121756642,-300.0,0.00013537,2]
[400105625,1767121756663,-300.0,0.00013537,2]
[400105626,1767121756684,-300.0,0.00013537,2]
[400105627,1767121756706,-300.0,0.00013537,2]
[400105628,1767121756727,-300.0,0.00013537,2]
[400105629,1767121756749,-300.0,0.00013537,2]
[400105630,1767121756770,-300.0,0.00013537,2]
[400105631,1767121756790,-403.506254,0.00013699,2]
[400105632,1767121756811,-600.0,0.00013972,2]
[400105633,1767121756830,-211.0,0.00014551,2]
[400105634,1767121756849,-1680.0,0.00014599,2]
[400105635,1767121756869,-221.34033847,0.00015239,2]
[400105636,1767121757015,-551.3847783,0.00015369,2]
[400105637,1767121758083,-168.6152217,0.00015369,2]
[400105638,1767121758104,-2351.0,0.00016059,2]
[400105639,1767121758123,-1710.20840804,0.0001642,2]
[400105640,1767121763114,-30217.15520406,0.0001642,2]
[400105641,1767121763139,-864.0,0.00016906,2]
[400105642,1767121763160,-3292.0,0.00017665,2]
[400105643,1767121763183,-1000.0,0.00018596,2]
[400105644,1767121763205,-4609.0,0.00019431,2]
[400105679,1767121832351,-403.506254,0.00020187,2]
[400105681,1767121832361,-83.62681797,0.00023221,2]
[400105759,1767121838582,-772.04249589,0.00023221,2]
[400105760,1767121838594,-344.33068614,0.00023221,2]
[400105761,1767121838605,-500.0,0.00023223,2]
[400105762,1767121838614,-179.40502035,0.00023223,2]
[400105763,1767121838626,-320.59497965,0.00023223,2]
[400105764,1767121838638,-206.21363056,0.00023223,2]
[400105765,1767121838649,-2420.1853518,0.00023223,2]
[400105766,1767121838661,-355.81467659,0.00023223,2]
[400105767,1767121838673,-7113.05995573,0.00023223,2]
[400105768,1767121838684,-8671.42865242,0.00023223,2]
[400105769,1767121838694,-3529.52280692,0.00023396,2]
[400105770,1767121838703,-1041.66666667,0.00023495,2]
[400105771,1767121838712,-500.0,0.00023497,2]
[400105772,1767121838721,-500.0,0.00023497,2]
[400105773,1767121838730,-600.0,0.00023686,10]
[400105774,1767121838739,-334.83436847,0.00024642,2]
[400105775,1767121838749,-602.70186324,0.00024642,2]
[400105776,1767121838759,-1071.46997909,0.00024642,2]
[400105777,1767121838768,-1467.22219405,0.00024642,2]
[400105778,1767121838780,-206.94964828,0.00024642,2]
[400105779,1767121838789,-219.47144167,0.00024642,2]
[400105780,1767121838799,-395.04859501,0.00024642,2]
[400105781,1767121838809,-702.30861336,0.00024642,2]
[400105782,1767121838818,-1097.35720837,0.00024642,2]
[400105783,1767121838827,-1580.19438005,0.00024642,2]
[400105784,1767121838837,-1138.0697388,0.00024924,2]
[400105785,1767121838847,-1105.71279287,0.00024924,2]
[400105786,1767121838856,-500.0,0.00025163,7]
[400105787,1767121838866,-500.0,0.00025318,2]
[400105788,1767121838875,-500.0,0.00025318,2]
[400105789,1767121838885,-250.54000002,0.00025318,2]
[400105790,1767121838895,-500.0,0.00025318,2]
[400105791,1767121838904,-500.0,0.00025318,2]
[400105792,1767121838914,-500.0,0.00025318,2]
[400105793,1767121838923,-500.0,0.00025318,2]
[400105794,1767121838933,-500.0,0.00025318,2]
[400105795,1767121838942,-500.0,0.00025318,2]
[400105796,1767121838953,-500.0,0.00025318,2]
[400105797,1767121838963,-500.0,0.00025318,2]
[400105798,1767121838973,-500.0,0.00025318,2]
[400105799,1767121838983,-500.0,0.00025318,2]
[400105800,1767121838994,-500.0,0.00025318,2]
[400105801,1767121839005,-500.0,0.00025318,2]
[400105802,1767121839015,-500.0,0.00025318,2]
[400105803,1767121839025,-500.0,0.00025318,2]
[400105804,1767121839035,-500.0,0.00025318,2]
[400105805,1767121839046,-500.0,0.00025318,2]
[400105806,1767121839056,-500.0,0.00025318,2]
[400105807,1767121839066,-500.0,0.00025318,2]
[400105808,1767121839077,-521.13282768,0.00025318,2]
[400105809,1767121839088,-500.0,0.00025318,2]
[400105810,1767121839098,-500.0,0.00025318,2]
[400105811,1767121839108,-500.0,0.00025318,2]
[400105812,1767121839241,-500.0,0.00025318,2]
[400105813,1767121839252,-500.0,0.00025318,2]
[400105814,1767121839261,-481.30454519,0.00025318,2]
[400105815,1767121839271,-500.0,0.00025318,2]
[400105816,1767121839281,-181.62116888,0.00025318,2]
[400105817,1767121839290,-500.0,0.00025318,2]
[400105818,1767121839299,-500.0,0.00025318,2]
[400105819,1767121839309,-500.0,0.00025318,2]
[400105820,1767121839318,-389.68715315,0.00025318,2]
[400105821,1767121839327,-500.0,0.00025318,2]
[400105822,1767121839336,-500.0,0.00025318,2]
[400105823,1767121839345,-1680.0,0.00025319,2]
[400105824,1767121839354,-3529.52280688,0.00025403,2]
[400105825,1767121839363,-160.4,0.00025517,10]
[400105826,1767121839372,-216.11811344,0.00025519,2]
[400105827,1767121839382,-259.44912027,0.00025527,2]
[400105828,1767121839392,-1597.29234003,0.00025527,2]
[400105829,1767121839401,-500.0,0.00025527,2]
[400105830,1767121839411,-1597.29234003,0.00025527,2]
[400105831,1767121839421,-1597.29234003,0.00025527,2]
[400105832,1767121839431,-206.63885412,0.00025527,2]
[400105833,1767121839440,-1597.29234003,0.00025527,2]
[400105834,1767121839449,-1597.29234003,0.00025527,2]
[400105835,1767121839458,-381.64792489,0.00025527,2]
[400105836,1767121839470,-1215.64441514,0.00025527,2]
[400105837,1767121839480,-1597.29234003,0.00025527,2]
[400105838,1767121839489,-827.14937946,0.00025527,2]
[400105857,1767121846571,-770.14296057,0.00025527,2]
[400105858,1767121846580,-1597.29234003,0.00025527,2]
[400105859,1767121846590,-1597.29234003,0.00025527,2]
[400105860,1767121846600,-1597.29234003,0.00025527,2]
[400105861,1767121846610,-1597.29234003,0.00025527,2]
[400105862,1767121846619,-1395.53635554,0.00025527,2]
[400105863,1767121888255,500.0,0.00018595,2]
[400105864,1767122457676,3490.62854239,0.00012771,2]
[400105868,1767122798139,-150.0,0.00013009,2]
[400105869,1767122798310,-76.82838296,0.00013009,2]
[400105870,1767122827090,-527.17161704,0.00013009,2]
[400105871,1767122827111,-500.0,0.00013273,2]
[400105872,1767122827132,-159.72719927,0.00013273,2]
[400105873,1767122827153,-1200.0,0.00013535,2]
[400105874,1767122827173,-300.0,0.00013535,2]
[400105875,1767122827193,-359.0,0.00013536,2]
[400105876,1767122827215,-454.30958196,0.00013536,2]
[400107317,1767122962119,-3395.7691755,0.00013436,2]
[400107318,1767122962150,-300.0,0.00013534,2]
[400107319,1767122962177,-500.0,0.00013535,2]
[400107320,1767122962202,-427.0348771,0.00013535,2]
[400107321,1767122962223,-500.0,0.00013535,2]
[400107322,1767122962246,-500.0,0.00013535,2]
[400107323,1767122962268,-500.0,0.00013535,2]
[400107324,1767122962288,-392.24776683,0.00013535,2]
[400107325,1767122962311,-500.0,0.00013535,2]
[400107326,1767122962334,-500.0,0.00013535,2]
[400107327,1767122962361,-500.0,0.00013535,2]
[400107328,1767122962383,-500.0,0.00013535,2]
[400107329,1767122962405,-500.0,0.00013535,2]
[400107330,1767122962429,-392.18808273,0.00013535,2]
[400107331,1767122962452,-500.0,0.00013535,2]
[400107332,1767122962476,-500.0,0.00013535,2]
[400107333,1767122962498,-500.0,0.00013535,2]
[400107334,1767122962520,-500.0,0.00013535,2]
[400107335,1767122962680,-500.0,0.00013535,2]
[400107336,1767122962702,-232.00828089,0.00013535,2]
[400107337,1767122962723,-500.0,0.00013535,2]
[400107338,1767122962744,-500.0,0.00013535,2]
[400107339,1767122962764,-500.0,0.00013535,2]
[400107340,1767122962786,-500.0,0.00013535,2]
[400107341,1767122962808,-500.0,0.00013535,2]
[400107342,1767122962830,-500.0,0.00013535,2]
[400107343,1767122962852,-198.15846323,0.00013535,2]
[400107344,1767122962875,-500.0,0.00013535,2]
[400107345,1767122962899,-500.0,0.00013535,2]
[400107346,1767122962919,-500.0,0.00013535,2]
[400107347,1767122962940,-500.0,0.00013535,2]
[400107348,1767122962964,-500.0,0.00013535,2]
[400107349,1767122962984,-500.0,0.00013535,2]
[400107350,1767122963008,-500.0,0.00013535,2]
[400107351,1767122963031,-500.0,0.00013535,2]
[400107352,1767122963053,-500.0,0.00013535,2]
[400107353,1767122963076,-500.0,0.00013535,2]
[400107354,1767122963098,-500.0,0.00013535,2]
[400107355,1767122963125,-500.0,0.00013535,2]
[400107356,1767122963148,-500.0,0.00013535,2]
[400107357,1767122963172,-589.82765751,0.00013535,2]
[400107358,1767122963194,-50000.0,0.00013536,2]
[400107359,1767122963216,-300.0,0.00013537,2]
[400107360,1767122963238,-300.0,0.00013537,2]
[400107361,1767122963260,-300.0,0.00013537,2]
[400107362,1767122963282,-300.0,0.00013537,2]
[400107363,1767122963304,-300.0,0.00013537,2]
[400107364,1767122963327,-300.0,0.00013537,2]
[400107365,1767122963349,-300.0,0.00013537,2]
[400107366,1767122963376,-300.0,0.00013537,2]
[400107367,1767122963402,-300.0,0.00013537,2]
[400107368,1767122963425,-300.0,0.00013537,2]
[400107369,1767122963448,-300.0,0.00013537,2]
[400107370,1767122963471,-300.0,0.00013537,2]
[400107371,1767122963495,-300.0,0.00013537,2]
[400107372,1767122963518,-300.0,0.00013537,2]
[400107373,1767122963542,-300.0,0.00013537,2]
[400107374,1767122963564,-1000.0,0.00013821,2]
[400107375,1767122963586,-1256.43434795,0.00014368,2]
[400107376,1767122963611,-420.0,0.00014834,2]
[400107377,1767122963632,-45.87250826,0.00014889,2]
[400107378,1767122969137,-150.0,0.00013485,2]
[400107379,1767122969166,-1634.12749174,0.00014889,2]
[400107380,1767122969194,-177.0,0.00015485,2]
[400107381,1767122969221,-3414.41956422,0.00015626,2]
[400107382,1767122969248,-587.0,0.00016259,2]
[400107383,1767122969273,-692.63268423,0.00016377,2]
[400107438,1767123032520,-500.0,0.00013698,2]
[400107440,1767123032530,-500.0,0.00013698,2]
[400107442,1767123032539,-125.97591378,0.00013698,2]
[400107444,1767123032550,-374.02408622,0.00013698,2]
[400107446,1767123032560,-1200.0,0.00016866,2]
[400107448,1767123032570,-204.0,0.00017485,2]
[400107450,1767123032579,-300.0,0.00017821,2]
[400107452,1767123032588,-470.35137804,0.00018,5]
[400107453,1767123032598,-5269.6578418,0.00018,2]
[400107456,1767123032609,-19711.52398616,0.00018,2]
[400107458,1767123032621,-427.395,0.00018,2]
[400107460,1767123032634,-280.32,0.00018,2]
[400107462,1767123032654,-2177.89216173,0.00018,2]
[400107585,1767123038629,-454.42529528,0.00017999,2]
[400107587,1767123038639,-500.0,0.00017999,2]
[400107589,1767123038649,-633.12871814,0.00017999,2]
[400107591,1767123038658,-210.2431203,0.00017999,2]
[400107593,1767123038668,-50681.65128465,0.00018,2]
[400107594,1767123038678,-300.0,0.00018177,2]
[400107596,1767123038699,-300.0,0.00018177,2]
[400107598,1767123038718,-300.0,0.00018177,2]
[400107600,1767123038729,-300.0,0.00018177,2]
[400107602,1767123038742,-300.0,0.00018177,2]
[400107604,1767123038754,-300.0,0.00018177,2]
[400107606,1767123038764,-300.0,0.00018177,2]
[400107608,1767123038774,-300.0,0.00018177,2]
[400107610,1767123038784,-300.0,0.00018177,2]
[400107612,1767123038794,-300.0,0.00018177,2]
[400107614,1767123038804,-300.0,0.00018177,2]
[400107616,1767123038814,-300.0,0.00018177,2]
[400107618,1767123038823,-300.0,0.00018177,2]
[400107620,1767123038833,-300.0,0.00018177,2]
[400107626,1767123038960,-300.0,0.00018177,2]
[400107627,1767123038971,-1680.0,0.00018515,2]
[400107628,1767123038981,-871.42387263,0.00018802,2]
[400107629,1767123038993,-600.0,0.00018966,2]
[400107630,1767123039006,-500.0,0.00019044,2]
[400107631,1767123039017,-500.0,0.00019178,2]
[400107632,1767123039027,-500.0,0.00019178,2]
[400107633,1767123039037,-500.0,0.00019178,2]
[400107634,1767123039048,-500.0,0.00019178,2]
[400107635,1767123039058,-500.0,0.00019178,2]
[400107636,1767123039068,-500.0,0.00019178,2]
[400107637,1767123039078,-500.0,0.00019178,2]
[400107638,1767123039088,-500.0,0.00019178,2]
[400107639,1767123039097,-500.0,0.00019178,2]
[400107640,1767123039107,-500.0,0.00019178,2]
[400107641,1767123039117,-500.0,0.00019178,2]
[400107642,1767123039127,-500.0,0.00019178,2]
[400107643,1767123039137,-500.0,0.00019178,2]
[400107644,1767123039146,-500.0,0.00019178,2]
[400107645,1767123039156,-500.0,0.00019178,2]
[400107646,1767123039166,-500.0,0.00019178,2]
[400107647,1767123039175,-500.0,0.00019178,2]
[400107648,1767123039186,-500.0,0.00019178,2]
[400107649,1767123039195,-500.0,0.00019178,2]
[400107650,1767123039205,-500.0,0.00019178,2]
[400107651,1767123039215,-500.0,0.00019178,2]
[400107652,1767123039225,-500.0,0.00019178,2]
[400107653,1767123039235,-500.0,0.00019178,2]
[400107654,1767123039244,-500.0,0.00019178,2]
[400107655,1767123039254,-500.0,0.00019178,2]
[400107656,1767123039264,-500.0,0.00019178,2]
[400107657,1767123039273,-500.0,0.00019178,2]
[400107658,1767123039283,-500.0,0.00019178,2]
[400107659,1767123039292,-500.0,0.00019178,2]
[400107660,1767123039302,-500.0,0.00019178,2]
[400107661,1767123039311,-500.0,0.00019178,2]
[400107662,1767123039322,-500.0,0.00019178,2]
[400107663,1767123039331,-500.0,0.00019178,2]
[400107664,1767123039340,-314.74599601,0.00019178,2]
[400107665,1767123039350,-420.0,0.00019448,2]
[400107666,1767123039359,-231.0,0.00019485,2]
[400107667,1767123039369,-181.61438419,0.00019815,2]
[400107668,1767123039379,-1472.62889665,0.00019815,2]
[400107669,1767123039388,-500.0,0.00019815,2]
[400107670,1767123039398,-1472.62889665,0.00019815,2]
[400107671,1767123039407,-191.96288575,0.00019815,2]
[400107672,1767123039416,-1472.62889665,0.00019815,2]
[400107673,1767123039427,-1472.62889665,0.00019815,2]
[400107674,1767123039436,-1472.62889665,0.00019815,2]
[400107675,1767123039445,-1472.62889665,0.00019815,2]
[400107676,1767123039455,-1472.62889665,0.00019815,2]
[400107677,1767123039464,-1472.62889665,0.00019815,2]
[400107678,1767123039473,-1472.62889665,0.00019815,2]
[400107679,1767123039483,-1472.62889665,0.00019815,2]
[400107680,1767123039493,-1472.62889665,0.00019815,2]
[400107681,1767123039502,-1472.62889665,0.00019815,2]
[400107682,1767123039512,-1472.62889665,0.00019815,2]
[400107683,1767123039521,-1472.62889665,0.00019815,2]
[400107684,1767123039531,-1472.62889665,0.00019815,2]
[400107685,1767123039540,-1472.62889665,0.00019815,2]
[400107686,1767123039550,-1472.62889665,0.00019815,2]
[400107687,1767123039559,-1472.62889665,0.00019815,2]
[400107688,1767123039569,-1472.62889665,0.00019815,2]
[400107689,1767123039577,-1472.62889665,0.00019815,2]
[400107690,1767123039587,-1472.62889665,0.00019815,2]
[400107691,1767123039596,-1472.62889665,0.00019815,2]
[400107692,1767123039605,-1048.920347,0.00019816,2]
[400107693,1767123039615,-1048.920347,0.00019816,2]
[400107694,1767123039624,-1048.920347,0.00019816,2]
[400107695,1767123039633,-1048.920347,0.00019816,2]
[400107696,1767123039643,-1028.04,0.000199,2]
[400107697,1767123039653,-365.4166716,0.0002,2]
[400107698,1767123039663,-267.13958041,0.00020108,2]
[400107699,1767123039672,-2351.0,0.00020326,2]
[400107700,1767123039685,-570.78414236,0.00020759,2]
[400107701,1767123039694,-720.0,0.00020862,2]
[400107702,1767123039704,-324.52735204,0.00021127,2]
[400107703,1767123039713,-370.88840234,0.00021127,2]
[400107704,1767123039723,-578.93361552,0.00021127,2]
[400107705,1767123039733,-587.0,0.00021224,2]
[400107706,1767123039743,-353.27540395,0.0002137,2]
[400107707,1767123039752,-258.0,0.00021485,2]
[400107708,1767123039762,-1048.920347,0.00021798,2]
[400107709,1767123039771,-1048.920347,0.00021798,2]
[400107710,1767123039782,-1048.920347,0.00021798,2]
[400107711,1767123039793,-1048.920347,0.00021798,2]
[400107712,1767123039806,-151.0,0.00021798,2]
[400107713,1767123039816,-168.43,0.00021905,3]
[400107714,1767123039825,-505.32,0.00021905,3]
[400107715,1767123039834,-500.0,0.00021916,2]
[400107716,1767123039843,-500.0,0.00021916,2]
[400107717,1767123039853,-500.0,0.00021916,2]
[400107718,1767123039863,-500.0,0.00021916,2]
[400107719,1767123039873,-500.0,0.00021916,2]
[400107720,1767123039883,-500.0,0.00021916,2]
[400107721,1767123039892,-500.0,0.00021916,2]
[400107722,1767123039902,-151.0,0.00021917,2]
[400107723,1767123039912,-500.0,0.00021917,2]
[400107724,1767123039923,-224.22006715,0.00021917,2]
[400107725,1767123039935,-500.0,0.00021917,2]
[400107726,1767123039944,-500.0,0.00021917,2]
[400107727,1767123039955,-500.0,0.00021917,2]
[400107728,1767123039964,-500.0,0.00021917,2]
[400107729,1767123039973,-500.0,0.00021917,2]
[400107730,1767123039983,-500.0,0.00021917,2]
[400107731,1767123039994,-500.0,0.00021917,2]
[400107732,1767123040003,-500.0,0.00021917,2]
[400107733,1767123040013,-500.0,0.00021917,2]
[400107734,1767123040022,-150.0,0.00021918,2]
[400107735,1767123040032,-224.22006715,0.00022191,2]
[400107736,1767123040043,-500.0,0.00022191,2]
[400107737,1767123040053,-500.0,0.00022191,2]
[400107738,1767123040062,-500.0,0.00022191,2]
[400107739,1767123040071,-335.89,0.00022191,2]
[400107740,1767123040080,-500.0,0.00022191,2]
[400107741,1767123040091,-500.0,0.00022191,2]
[400107742,1767123040101,-3292.0,0.00022314,2]
[400107743,1767123040111,-272.26,0.00022465,2]
[400107744,1767123040120,-500.0,0.00022465,2]
[400107745,1767123040130,-300.0,0.00022466,2]
[400107746,1767123040139,-1605.054164,0.00022494,2]
[400107747,1767123040148,-282.64,0.000225,7]
[400107748,1767123040158,-1028.04,0.000225,14]
[400107749,1767123040167,-1258.0239803,0.00022731,4]
[400107750,1767123040177,-500.0,0.00022739,2]
[400107751,1767123040187,-864.0,0.00022949,10]
[400107752,1767123040197,-450.0,0.00023014,2]
[400107753,1767123040206,-823.0,0.00023162,2]
[400107754,1767123040216,-277.0,0.00023247,2]
[400107755,1767123040225,-336.86,0.00023275,3]
[400107756,1767123040235,-277.40592187,0.00023479,2]
[400107757,1767123040245,-285.0,0.00023485,2]
[400107758,1767123040254,-300.0,0.00023562,2]
[400107759,1767123040264,-540.52225849,0.00023678,2]
[400107760,1767123040274,-176.86904202,0.00023687,2]
[400107761,1767123040284,-318.36427563,0.00023687,2]
[400107762,1767123040293,-565.98093446,0.00023687,2]
[400107763,1767123040303,-883.46086488,0.00023687,2]
[400107764,1767123040313,-320.09170343,0.00023687,2]
[400107765,1767123040322,-576.16506617,0.00023687,2]
[400107766,1767123040332,-1024.29345097,0.00023687,2]
[400107767,1767123040341,-1600.45851715,0.00023687,2]
[400107769,1767123040351,-2302.35560443,0.00023687,2]
[400107771,1767123040360,-151.0,0.00023725,2]
[400107773,1767123040369,-151.0,0.00023725,2]
[400107775,1767123040378,-151.0,0.00023725,2]
[400107777,1767123040387,-257.2775429,0.00024,2]
[400107779,1767123040396,-161.72349688,0.00024036,2]
[400107781,1767123040405,-500.0,0.00024114,2]
[400107783,1767123040414,-27398.66227658,0.00024142,2]
[400107785,1767123040424,-1048.920347,0.00024142,2]
[400107786,1767123040434,-1048.920347,0.00024142,2]
[400107787,1767123040444,-1048.920347,0.00024142,2]
[400107789,1767123040453,-1048.920347,0.00024142,2]
[400107791,1767123040463,-151.0,0.00024142,2]
[400107792,1767123040472,-500.0,0.00024152,2]
[400107794,1767123040481,-500.0,0.00024227,2]
[400107796,1767123040491,-161.72349688,0.00024374,6]
[400107797,1767123040501,-1028.04,0.000244,14]
[400107799,1767123040511,-4609.0,0.00024496,2]
[400107801,1767123040520,-113605.30120642,0.0002465,2]
[400107802,1767123040530,-1048.920347,0.0002465,2]
[400107803,1767123040539,-1048.920347,0.0002465,2]
[400107804,1767123040549,-1048.920347,0.0002465,2]
[400107806,1767123040558,-1048.920347,0.0002465,2]
[400107807,1767123040568,-219.903846,0.0002465,2]
[400107809,1767123040577,-150.0,0.00024658,2]
[400107810,1767123040587,-161.72349688,0.00024711,11]
[400107811,1767123040596,-150.0,0.00024795,2]
[400107812,1767123040606,-151.0,0.000248,7]
[400107813,1767123040615,-4611.6394167,0.000248,2]
[400107814,1767123040625,-173.75,0.00024899,2]
[400107815,1767123040634,-151.0,0.000249,7]
[400107816,1767123040643,-151.0,0.000249,7]
[400107817,1767123040653,-106760.816023,0.000249,2]
[400107818,1767123040663,-1048.920347,0.000249,7]
[400107819,1767123040672,-1048.920347,0.000249,7]
[400107820,1767123040683,-1048.920347,0.000249,7]
[400107822,1767123040693,-1048.920343,0.000249,7]
[400107823,1767123040703,-35586.9386743,0.00024924,2]
[400107824,1767123040712,-1537.2131389,0.00024924,2]
[400107825,1767123040721,-151.0,0.00024934,7]
[400107826,1767123040731,-449.58403507,0.00024966,2]
[400107827,1767123040740,-151.0,0.00024966,2]
[400107828,1767123040749,-496.47127164,0.00024966,2]
[400107829,1767123040759,-500.0,0.00024966,2]
[400107830,1767123040768,-500.0,0.00024966,2]
[400107832,1767123040777,-500.0,0.00024966,2]
[400107833,1767123040787,-500.0,0.00024966,2]
[400107835,1767123040796,-500.0,0.00024966,2]
[400107837,1767123040805,-500.0,0.00024966,2]
[400107839,1767123040815,-500.0,0.00024966,2]
[400107840,1767123040824,-239.67988965,0.00024966,2]
[400107841,1767123040833,-500.0,0.00024966,2]
[400107842,1767123040843,-500.0,0.00024966,2]
[400107843,1767123040852,-329.95937148,0.00024966,2]
[400107844,1767123040862,-500.0,0.00024966,2]
[400107845,1767123040871,-500.0,0.00024966,2]
[400107846,1767123040880,-151.0,0.00024966,2]
[400107847,1767123040889,-500.0,0.00024966,2]
[400107848,1767123040900,-500.0,0.00024966,2]
[400107849,1767123040914,-2398.4119403,0.00024966,2]
[400107850,1767123040924,-500.0,0.00024966,2]
[400107851,1767123040936,-500.0,0.00024966,2]
[400107852,1767123040946,-500.0,0.00024966,2]
[400107853,1767123040956,-181.08010149,0.00024966,2]
[400107854,1767123040965,-151.0,0.00024966,2]
[400107855,1767123040974,-151.0,0.00024966,2]
[400107856,1767123040985,-151.0,0.00024966,2]
[400107857,1767123040994,-151.0,0.00024966,2]
[400107859,1767123041004,-151.0,0.00024966,2]
[400107860,1767123041013,-151.0,0.00024966,2]
[400107861,1767123041023,-151.0,0.00024966,2]
[400107862,1767123041032,-151.0,0.00024966,2]
[400107863,1767123041042,-151.0,0.00024966,2]
[400107864,1767123041052,-151.0,0.00024966,2]
[400107865,1767123041062,-151.0,0.00024966,2]
[400107866,1767123041071,-151.0,0.00024966,2]
[400107867,1767123041080,-151.0,0.00024966,2]
[400107868,1767123041090,-151.0,0.00024966,2]
[400107869,1767123041099,-151.0,0.00024966,2]
[400107870,1767123041108,-10390.32906121,0.00025,2]
[400107871,1767123041118,-27204.6532481,0.00025,15]
[400107872,1767123041133,-33428.28113748,0.00025,15]
[400107873,1767123041145,-3068.87568946,0.00025,15]
[400107874,1767123041156,-538.5067473,0.00025,15]
[400107875,1767123041167,-1274.43999481,0.00025,15]
[400107876,1767123041207,-150.0,0.00024932,2]
[400107877,1767123041216,-8781.6,0.00025,15]
[400107878,1767123041228,-1473.19474389,0.00025,15]
[400107879,1767123041239,-1326.66510949,0.00025,15]
[400107886,1767123045771,-165.9092991,0.00013737,2]
[400107887,1767123045782,-279.0907009,0.00025,15]
[400107892,1767123046232,-25.20315366,0.00025,15]
[400107893,1767123046243,-632.66233801,0.00025,15]
[400107894,1767123046254,-414.32248862,0.00025,15]
[400107895,1767123046266,-15488.78500185,0.00025,15]
[400107896,1767123046277,-8566.3774352,0.00025,15]
[400107897,1767123046288,-22702.01331277,0.00025,15]
[400107898,1767123046299,-505.06525982,0.00025,15]
[400107901,1767123047204,-69098.25758025,0.00025,15]
[400107902,1767123047215,-1084.27758702,0.00025,2]
[400107903,1767123047224,-11293.20269687,0.00025,2]